fUST/lending_fUST_20240524
["ID","MTS","AMOUNT","RATE_DAILY","PERIOD"]
[327788683,1716480649948,-500.0,0.00024657,2]
[327788684,1716480649957,-559.6141306,0.00024657,4]
[327788685,1716480649966,-500.0,0.00024657,2]
[327788686,1716480649978,-922.07,0.00024657,2]
[327788687,1716480649987,-2000.0,0.00024657,2]
[327788688,1716480649996,-500.0,0.00024657,2]
[327788689,1716480650006,-500.0,0.00024657,2]
[327788690,1716480650015,-568.6801398,0.00024657,2]
[327788691,1716480650024,-500.0,0.00024657,2]
[327788692,1716480650033,-500.0,0.00024657,2]
[327788693,1716480650043,-1559.48,0.00024657,2]
[327788694,1716480650052,-500.0,0.00024657,2]
[327788695,1716480650061,-1313.34,0.00024657,2]
[327788696,1716480650071,-500.0,0.00024657,2]
[327788697,1716480650080,-500.0,0.00024657,2]
[327788698,1716480650089,-500.0,0.00024657,2]
[327788699,1716480650102,-500.0,0.00024657,2]
[327788700,1716480650112,-581.94,0.00024657,2]
[327788701,1716480650121,-500.0,0.00024657,2]
[327788702,1716480650130,-500.0,0.00024657,2]
[327788703,1716480650139,-500.0,0.00024657,2]
[327788704,1716480650148,-2143.08,0.00024657,2]
[327788705,1716480650157,-500.0,0.00024657,2]
[327788706,1716480650166,-500.0,0.00024657,2]
[327788707,1716480650176,-596.63,0.00024657,2]
[327788708,1716480650185,-500.0,0.00024657,2]
[327788709,1716480650194,-500.0,0.00024657,2]
[327788710,1716480650203,-500.0,0.00024657,2]
[327788711,1716480650212,-500.0,0.00024657,2]
[327788712,1716480650221,-500.0,0.00024657,2]
[327788713,1716480650232,-500.0,0.00024657,2]
[327788714,1716480650242,-511.42,0.00024657,2]
[327788715,1716480650251,-530.85234758,0.00024657,2]
[327788716,1716480650260,-500.0,0.00024657,2]
[327788717,1716480650270,-500.0,0.00024657,2]
[327788718,1716480650279,-2458.6,0.00024657,2]
[327788719,1716480650287,-748.49,0.00024657,2]
[327788720,1716480650297,-541.51,0.00024657,2]
[327788721,1716480650306,-4639.3,0.00024657,2]
[327788722,1716480650315,-3270.69,0.00024657,2]
[327788723,1716480650323,-500.0,0.00024657,2]
[327788724,1716480650332,-510.03393019,0.00024657,2]
[327788725,1716480650341,-504.72426719,0.00024657,2]
[327788726,1716480650350,-588.61,0.00024657,2]
[327788727,1716480650359,-500.0,0.00024657,2]
[327788728,1716480650369,-613.06,0.00024657,2]
[327788729,1716480650378,-989.19,0.00024657,2]
[327788730,1716480650387,-500.0,0.00024657,2]
[327788731,1716480650396,-1329.93,0.00024657,2]
[327788732,1716480650406,-500.0,0.00024657,2]
[327788733,1716480650415,-1207.36,0.00024657,2]
[327788734,1716480650424,-500.0,0.00024657,2]
[327788735,1716480650433,-1129.93206342,0.00024657,2]
[327788749,1716480659798,155.11836596,9.999e-05,2]
[327788750,1716480662304,155.04341216,0.0001,2]
[327788751,1716480663646,1516.65387709,9.999e-05,2]
[327788752,1716480664431,224.63566001,9.999e-05,2]
[327788753,1716480669884,304.39016741,9.999e-05,2]
[327788754,1716480670269,2090.39867159,9.999e-05,2]
[327788755,1716480678409,224.32536299,9.999e-05,2]
[327788756,1716480683003,299.53606579,9.999e-05,2]
[327788757,1716480685807,3631.65802566,9.999e-05,2]
[327788762,1716481113088,3492.554835,9.999e-05,2]
[327788763,1716481148641,-285.92791132,0.00015,2]
[327788764,1716481148662,-2031.9,0.00016999,2]
[327788765,1716481148683,-9629.47208868,0.00016999,2]
[327788766,1716481168704,754.70968783,9.999e-05,2]
[327788767,1716481168735,397.1304338,9.999e-05,2]
[327788768,1716481188389,-1978.57825249,0.00016998,2]
[327788769,1716481188413,-550.9904196,0.00016998,2]
[327788770,1716481188436,-4870.98132791,0.00016999,2]
[327788772,1716481213908,-5607.75175576,0.00016999,2]
[327788773,1716481213931,-285.73345638,0.00016999,2]
[327788774,1716481213960,-2168.38478786,0.00017,2]
[327788775,1716481244869,-1978.58,0.00017,2]
[327788778,1716481543638,-9403.91722042,0.00016992,2]
[327788779,1716481543659,-2031.9,0.00016993,2]
[327788780,1716481543680,-34956.68450139,0.00016994,2]
[327788781,1716481543701,-24026.98277555,0.00017,2]
[327788782,1716481543722,-1978.57825249,0.00017345,2]
[327788783,1716481543741,-550.9904196,0.00017346,2]
[327788784,1716481543760,-1151.84012163,0.00017346,2]
[327788785,1716481543780,-24900.0,0.00017348,2]
[327788786,1716481543800,-758.47980169,0.00017462,2]
[327788787,1716481543819,-282.900113,0.00017548,2]
[327788788,1716481543838,-25403.6586723,0.00017562,2]
[327788789,1716481543858,-214.35108108,0.000179,2]
[327788790,1716481543877,-1143.36406491,0.00018,2]
[327788791,1716481543896,-181.938073,0.00019178,2]
[327788792,1716481543916,-758.47980166,0.00019459,2]
[327788793,1716481543936,-214.35108106,0.00019564,2]
[327788794,1716481543957,-285.60021722,0.0002,2]
[327788796,1716481599038,207.60123387,9.999e-05,2]
[327788797,1716481617515,410.70803407,9.999e-05,2]
[327788798,1716481629691,1582.29207805,9.999e-05,2]
[327788799,1716481631121,-1351.24581198,0.00018739,2]
[327788800,1716481631142,-650.40146745,0.0001874,2]
[327788801,1716481631162,-2496.09131673,0.000189,2]
[327788802,1716481631181,-10825.00373057,0.0002,2]
[327788803,1716481631202,-3000.0,0.0002,2]
[327788804,1716481631222,-15350.23713336,0.0002,2]
[327788805,1716481631243,-3133.37559336,0.0002,2]
[327788806,1716481631262,-3980.09499401,0.00021,2]
[327788807,1716481631283,-214.35108106,0.00021228,2]
[327788808,1716481631302,-4694.88024875,0.00021455,2]
[327788809,1716481631322,-510.1603678,0.00021918,2]
[327788810,1716481631341,-166.666666,0.00021918,2]
[327788811,1716481631361,-151.0,0.00022384,3]
[327788812,1716481631382,-166.666666,0.00022431,2]
[327788813,1716481631402,-275.88025216,0.00022556,2]
[327788814,1716481631423,-214.35108106,0.00022891,2]
[327788815,1716481631442,-166.666666,0.00022944,2]
[327788816,1716481631461,-19043.70391369,0.00023336,2]
[327788817,1716481631481,-2031.9,0.00023337,2]
[327788818,1716481631501,-430.3618645,0.00023338,2]
[327788819,1716481631521,-913.70275979,0.00023339,2]
[327788820,1716481631542,-154.93802479,0.0002334,2]
[327788821,1716481631562,-155.96251668,0.00023341,2]
[327788822,1716481631582,-151.0,0.00023388,3]
[327788823,1716481631602,-166.666666,0.00023456,2]
[327788824,1716481631622,-150.0,0.00023697,2]
[327788825,1716481631642,-2496.09131673,0.000239,2]
[327788826,1716481631662,-550.85396294,0.00023956,2]
[327788827,1716481631681,-1151.84012163,0.00023956,2]
[327788828,1716481631702,-191.17529344,0.00023957,2]
[327788829,1716481631722,-4788.48058851,0.00023957,2]
[327788830,1716481631742,-6525.29497519,0.00023958,2]
[327788831,1716481631763,-187.71376422,0.00023958,4]
[327788832,1716481631786,-156.821,0.00023958,2]
[327788833,1716481631805,-1972.55891415,0.00023958,2]
[327788834,1716481631824,-166.666666,0.00023969,2]
[327788835,1716481631844,-307.3427078,0.0002411,2]
[327788836,1716481631864,-490.601651,0.00024384,2]
[327788837,1716481631885,-188.904626,0.00024384,2]
[327788838,1716481631905,-204.5866529,0.00024384,2]
[327788839,1716481631925,-204.5866529,0.00024384,2]
[327788840,1716481631945,-151.0,0.00024391,5]
[327788841,1716481631967,-949.58287647,0.0002441,2]
[327788842,1716481631987,-2635.84610255,0.00024415,2]
[327788843,1716481632009,-2000.0,0.00024457,2]
[327788844,1716481632036,-166.666666,0.00024482,2]
[327788845,1716481632057,-214.35108106,0.00024555,2]
[327788846,1716481632077,-3000.0,0.00024556,2]
[327788847,1716481632098,-3000.0,0.00024556,2]
[327788848,1716481632120,-3000.0,0.00024556,2]
[327788849,1716481632140,-3000.0,0.00024556,2]
[327788850,1716481632160,-3000.0,0.00024556,2]
[327788851,1716481632180,-6316.86787877,0.00024557,3]
[327788852,1716481642100,-1869.43776659,0.00020913,2]
[327788853,1716481642120,-1744.99931007,0.00024557,3]
[327788854,1716481642139,-417.48839794,0.00024571,2]
[327788855,1716481642160,-4225.76789331,0.00024586,2]
[327788856,1716481642181,-772.36964669,0.00024653,2]
[327788857,1716481642202,-215.80606168,0.00024653,2]
[327788858,1716481642223,-155.36909116,0.00024653,2]
[327788859,1716481642245,-1256.77598172,0.00024653,2]
[327788860,1716481642265,-230.90684664,0.00024653,2]
[327788861,1716481642297,-455.62493126,0.00024653,2]
[327788862,1716481642319,-835.85509789,0.00024653,2]
[327788863,1716481642343,-302.42294018,0.00024653,2]
[327788864,1716481642369,-274.54948177,0.00024653,2]
[327788865,1716481642394,-155.64325057,0.00024653,2]
[327788866,1716481642417,-207.4409988,0.00024653,2]
[327788867,1716481642440,-410.53349584,0.00024653,2]
[327788868,1716481642465,-239.37725093,0.00024654,2]
[327788869,1716481642489,-2467.58422736,0.00024654,2]
[327788870,1716481642514,-500.0,0.00024654,2]
[327788871,1716481642550,-618.87430006,0.00024654,2]
[327788872,1716481642578,-500.0,0.00024654,2]
[327788873,1716481642603,-500.0,0.00024654,2]
[327788874,1716481642632,-500.0,0.00024654,2]
[327788875,1716481642656,-500.0,0.00024654,2]
[327788876,1716481642685,-500.0,0.00024654,2]
[327788877,1716481642709,-500.0,0.00024654,2]
[327788878,1716481642736,-426.42023954,0.00024654,2]
[327788879,1716481650098,-4137.7310622,0.00024406,2]
[327788880,1716481650120,-2177.98605443,0.00024456,2]
[327788881,1716481650141,-585.3334164,0.00024653,2]
[327788882,1716481650162,-4694.88024875,0.00024653,2]
[327788883,1716481650182,-1350.53017416,0.00024653,2]
[327788884,1716481650202,-430.3618645,0.00024653,2]
[327788885,1716481650226,-73.57976046,0.00024654,2]
[327788886,1716481650247,-500.0,0.00024654,2]
[327788887,1716481650273,-527.46476088,0.00024654,2]
[327788888,1716481650298,-500.0,0.00024654,2]
[327788889,1716481650318,-500.0,0.00024654,2]
[327788890,1716481650339,-435.86989116,0.00024654,2]
[327788891,1716481650360,-500.0,0.00024654,2]
[327788892,1716481650381,-500.0,0.00024654,2]
[327788893,1716481650403,-500.0,0.00024654,2]
[327788894,1716481650423,-287.96367402,0.00024655,2]
[327788895,1716481650443,-690.41096895,0.00024655,2]
[327788896,1716481650463,-684.8282798,0.00024655,2]
[327788897,1716481650483,-528.62113532,0.00024655,2]
[327788898,1716481650503,-702.80759732,0.00024655,2]
[327788899,1716481650523,-331.06432126,0.00024655,2]
[327788900,1716481650542,-155.04031048,0.00024655,2]
[327788901,1716481650561,-155.04031048,0.00024655,2]
[327788902,1716481650580,-2679.56412785,0.00024655,2]
[327788903,1716481650599,-189.96457126,0.00024655,2]
[327788904,1716481650619,-658.33611615,0.00024655,2]
[327788905,1716481650640,-10454.14770375,0.00024655,2]
[327788906,1716481650659,-1457.57825249,0.00024655,2]
[327788907,1716481650679,-53053.85590915,0.00024655,2]
[327788908,1716481674307,2102.32,0.00027,30]
[327788958,1716481833148,-2881.56878985,0.0001864,2]
[327788960,1716481833158,-1551.67091679,0.0002,2]
[327788962,1716481833167,-167.417719,0.00021874,2]
[327788964,1716481833178,-404.0011325,0.00022236,2]
[327788966,1716481833189,-4199.46000934,0.00022326,2]
[327788968,1716481833198,-151.0,0.00022403,3]
[327788970,1716481833208,-404.0011325,0.00022488,2]
[327788972,1716481833218,-4199.46000934,0.0002255,2]
[327788974,1716481833227,-404.0011325,0.00022802,2]
[327788976,1716481833237,-4199.46000934,0.00022885,2]
[327788978,1716481833247,-4199.46000934,0.00023104,2]
[327788980,1716481833256,-404.0011325,0.00023223,2]
[327788982,1716481833266,-4199.46000934,0.00023391,2]
[327788984,1716481833275,-404.0011325,0.00023398,2]
[327788986,1716481833285,-151.0,0.00023405,3]
[327788988,1716481833295,-4199.46000934,0.00023619,2]
[327788990,1716481833304,-404.0011325,0.00023793,2]
[327788992,1716481833313,-4199.46000934,0.0002399,2]
[327788994,1716481833323,-404.0011325,0.00024076,2]
[327788996,1716481833332,-404.0011325,0.000242,2]
[327788998,1716481833342,-4199.46000934,0.00024227,2]
[327789000,1716481833351,-404.0011325,0.00024466,2]
[327789002,1716481833361,-265.23184288,0.00024556,2]
[327789004,1716481833370,-408.23942826,0.00024556,2]
[327789006,1716481833380,-500.0,0.00024556,2]
[327789008,1716481833390,-500.0,0.00024556,2]
[327789010,1716481833399,-480.76096734,0.00024556,2]
[327789012,1716481833408,-500.0,0.00024556,2]
[327789014,1716481833418,-767.27792979,0.00024556,2]
[327789015,1716481833427,-1174.81649667,0.00024557,11]
[327789016,1716481833438,-38725.04829458,0.00024557,3]
[327789017,1716481833471,-7027.10960867,0.00024557,3]
[327789177,1716481838074,-43135.84209675,0.00024557,3]
[327789178,1716481838089,-4199.46000934,0.00024567,2]
[327789179,1716481838098,-1584.23185588,0.00024653,2]
[327789180,1716481838108,-1755.29799477,0.00024653,2]
[327789181,1716481838119,-274.88304488,0.00024654,2]
[327789182,1716481838138,-215.7405342,0.00024654,2]
[327789183,1716481838148,-1868.72841362,0.00024654,2]
[327789184,1716481838161,-3420.40659065,0.00024655,2]
[327789185,1716481838171,-154.98450155,0.00024655,2]
[327789186,1716481838180,-3000.0,0.00024655,2]
[327789187,1716481838190,-157.42535238,0.00024655,2]
[327789188,1716481838203,-1581.99669599,0.00024655,2]
[327789189,1716481838213,-3000.0,0.00024656,2]
[327789190,1716481838222,-3000.0,0.00024656,2]
[327789191,1716481838232,-3000.0,0.00024656,2]
[327789192,1716481838242,-3000.0,0.00024656,2]
[327789193,1716481838252,-3000.0,0.00024656,2]
[327789194,1716481838262,-1687.59996864,0.00024656,2]
[327789195,1716481838272,-500.0,0.00024657,2]
[327789196,1716481838282,-500.0,0.00024657,2]
[327789197,1716481838291,-873.62,0.00024657,2]
[327789198,1716481838301,-535.19666016,0.00024657,2]
[327789199,1716481838310,-500.0,0.00024657,2]
[327789200,1716481838319,-500.0,0.00024657,2]
[327789201,1716481838329,-591.64,0.00024657,2]
[327789202,1716481838338,-500.0,0.00024657,2]
[327789203,1716481838348,-500.0,0.00024657,2]
[327789204,1716481838357,-608.4,0.00024657,2]
[327789205,1716481838366,-500.0,0.00024657,2]
[327789206,1716481838376,-947.53,0.00024657,2]
[327789207,1716481838385,-500.0,0.00024657,2]
[327789208,1716481838394,-500.0,0.00024657,2]
[327789209,1716481838404,-629.92,0.00024657,2]
[327789210,1716481838414,-500.0,0.00024657,2]
[327789211,1716481838423,-500.0,0.00024657,2]
[327789212,1716481838432,-500.0,0.00024657,2]
[327789213,1716481838443,-500.0,0.00024657,2]
[327789214,1716481838453,-500.0,0.00024657,2]
[327789215,1716481838462,-500.0,0.00024657,2]
[327789216,1716481838472,-500.0,0.00024657,2]
[327789217,1716481838481,-500.0,0.00024657,2]
[327789218,1716481838491,-489.98527802,0.00024657,2]
[327789219,1716481838501,-500.0,0.00024657,2]
[327789220,1716481838510,-619.16,0.00024657,2]
[327789221,1716481838520,-500.0,0.00024657,2]
[327789222,1716481838529,-500.0,0.00024657,2]
[327789223,1716481838538,-254.34007159,0.00024657,2]
[327789224,1716481838548,-538.27,0.00024657,2]
[327789225,1716481838557,-300.0,0.00024657,2]
[327789226,1716481838566,-500.0,0.00024657,2]
[327789227,1716481838576,-500.0,0.00024657,2]
[327789228,1716481838586,-649.71,0.00024657,2]
[327789229,1716481838596,-1000.0,0.00024657,2]
[327789230,1716481838605,-2528.75,0.00024657,2]
[327789231,1716481838615,-500.0,0.00024657,2]
[327789232,1716481838624,-500.0,0.00024657,2]
[327789233,1716481838634,-691.95,0.00024657,2]
[327789234,1716481838643,-500.0,0.00024657,2]
[327789235,1716481838652,-500.0,0.00024657,2]
[327789236,1716481838662,-500.0,0.00024657,2]
[327789237,1716481838671,-500.0,0.00024657,2]
[327789238,1716481838681,-500.0,0.00024657,2]
[327789239,1716481838690,-500.0,0.00024657,2]
[327789240,1716481838701,-542.62,0.00024657,2]
[327789241,1716481838711,-726.74,0.00024657,2]
[327789242,1716481838720,-1522.96,0.00024657,2]
[327789243,1716481838730,-500.0,0.00024657,2]
[327789244,1716481838740,-500.0,0.00024657,2]
[327789245,1716481838748,-500.0,0.00024657,2]
[327789246,1716481838757,-500.0,0.00024657,2]
[327789247,1716481838767,-500.0,0.00024657,2]
[327789248,1716481838777,-500.0,0.00024657,2]
[327789249,1716481838786,-500.0,0.00024657,2]
[327789250,1716481838796,-500.0,0.00024657,2]
[327789251,1716481838805,-500.0,0.00024657,2]
[327789252,1716481838815,-500.0,0.00024657,2]
[327789253,1716481838824,-630.13,0.00024657,2]
[327789254,1716481838834,-500.0,0.00024657,2]
[327789255,1716481838843,-500.0,0.00024657,2]
[327789256,1716481838853,-553.53473496,0.00024657,2]
[327789257,1716481838863,-500.0,0.00024657,2]
[327789258,1716481838873,-500.0,0.00024657,2]
[327789259,1716481838882,-894.47,0.00024657,2]
[327789260,1716481838893,-371.21737233,0.00024657,2]
[327789261,1716481838902,-500.0,0.00024657,2]
[327789262,1716481838912,-645.14,0.00024657,2]
[327789263,1716481838922,-500.0,0.00024657,2]
[327789264,1716481838932,-500.0,0.00024657,2]
[327789265,1716481838943,-151.74187331,0.00024657,2]
[327789266,1716481838952,-500.0,0.00024657,2]
[327789267,1716481838962,-500.0,0.00024657,2]
[327789268,1716481838971,-500.0,0.00024657,2]
[327789269,1716481838980,-500.0,0.00024657,2]
[327789270,1716481838990,-500.0,0.00024657,2]
[327789271,1716481839000,-754.85,0.00024657,2]
[327789272,1716481839009,-500.0,0.00024657,2]
[327789273,1716481839019,-500.0,0.00024657,2]
[327789274,1716481839029,-500.0,0.00024657,2]
[327789275,1716481839038,-500.0,0.00024657,2]
[327789276,1716481839048,-500.0,0.00024657,2]
[327789277,1716481839058,-500.0,0.00024657,2]
[327789278,1716481839068,-500.0,0.00024657,2]
[327789279,1716481839078,-517.73505975,0.00024657,2]
[327789280,1716481839090,-500.0,0.00024657,2]
[327789281,1716481839100,-500.0,0.00024657,2]
[327789282,1716481839110,-500.0,0.00024657,2]
[327789283,1716481839120,-500.0,0.00024657,2]
[327789284,1716481839130,-500.0,0.00024657,2]
[327789285,1716481839140,-491.14399044,0.00024657,2]
[327789286,1716481839150,-515.67013925,0.00024657,2]
[327789287,1716481839160,-500.0,0.00024657,2]
[327789288,1716481839173,-500.0,0.00024657,2]
[327789289,1716481839185,-500.0,0.00024657,2]
[327789290,1716481839197,-830.1,0.00024657,2]
[327789291,1716481839207,-1516.8,0.00024657,2]
[327789292,1716481839218,-500.0,0.00024657,2]
[327789293,1716481839228,-935.66,0.00024657,2]
[327789294,1716481839239,-500.0,0.00024657,2]
[327789295,1716481839249,-522.219981,0.00024657,2]
[327789296,1716481839260,-522.219981,0.00024657,2]
[327789297,1716481839271,-522.219981,0.00024657,2]
[327789298,1716481839281,-522.219981,0.00024657,2]
[327789299,1716481839290,-500.0,0.00024657,2]
[327789300,1716481839300,-500.0,0.00024657,2]
[327789301,1716481839310,-500.0,0.00024657,2]
[327789302,1716481839320,-595.29138454,0.00024657,2]
[327789303,1716481839329,-684.54,0.00024657,2]
[327789304,1716481839338,-1290.08,0.00024657,2]
[327789305,1716481839348,-500.0,0.00024657,2]
[327789306,1716481839358,-500.0,0.00024657,2]
[327789307,1716481839368,-1823.43,0.00024657,2]
[327789308,1716481839377,-500.0,0.00024657,2]
[327789309,1716481839387,-500.0,0.00024657,2]
[327789310,1716481839397,-749.99,0.00024657,2]
[327789311,1716481839407,-808.98,0.00024657,2]
[327789312,1716481839417,-500.0,0.00024657,2]
[327789313,1716481839427,-500.0,0.00024657,2]
[327789314,1716481839436,-500.0,0.00024657,2]
[327789315,1716481839447,-500.0,0.00024657,2]
[327789316,1716481839457,-500.0,0.00024657,2]
[327789317,1716481839466,-500.0,0.00024657,2]
[327789318,1716481839476,-500.0,0.00024657,2]
[327789319,1716481839486,-431.69948278,0.00024657,2]
[327789320,1716481839496,-500.0,0.00024657,2]
[327789321,1716481839507,-512.90216775,0.00024657,2]
[327789322,1716481839516,-1965.2,0.00024657,2]
[327789323,1716481839525,-512.51615301,0.00024657,2]
[327789324,1716481839535,-500.0,0.00024657,2]
[327789325,1716481839545,-448.89453963,0.00024657,2]
[327789326,1716481839555,-702.28,0.00024657,2]
[327789327,1716481839564,-783.96,0.00024657,2]
[327789328,1716481839573,-500.0,0.00024657,2]
[327789329,1716481839583,-500.0,0.00024657,2]
[327789330,1716481839592,-500.0,0.00024657,2]
[327789331,1716481839602,-151.0,0.00024657,2]
[327789332,1716481839611,-410.98747228,0.00024657,2]
[327789333,1716481839622,-1452.8,0.00024657,2]
[327789334,1716481839631,-796.9,0.00024657,2]
[327789335,1716481839641,-500.0,0.00024657,2]
[327789336,1716481839651,-500.0,0.00024657,2]
[327789337,1716481839661,-617.75,0.00024657,2]
[327789338,1716481839671,-500.0,0.00024657,2]
[327789339,1716481839681,-151.0,0.00024657,2]
[327789340,1716481839691,-500.0,0.00024657,2]
[327789341,1716481839703,-500.0,0.00024657,2]
[327789342,1716481839712,-500.0,0.00024657,2]
[327789343,1716481839722,-500.0,0.00024657,2]
[327789344,1716481839732,-689.59,0.00024657,2]
[327789345,1716481839741,-638.32,0.00024657,2]
[327789346,1716481839751,-3130.06,0.00024657,2]
[327789347,1716481839761,-500.0,0.00024657,2]
[327789348,1716481839771,-522.49855027,0.00024657,2]
[327789349,1716481839781,-4226.07,0.00024657,2]
[327789350,1716481839791,-719.3,0.00024657,2]
[327789351,1716481839800,-500.0,0.00024657,2]
[327789352,1716481839810,-511.19861648,0.00024657,2]
[327789353,1716481839821,-2333.33,0.00024657,2]
[327789354,1716481839831,-500.0,0.00024657,2]
[327789355,1716481839841,-500.0,0.00024657,2]
[327789356,1716481839851,-500.0,0.00024657,2]
[327789357,1716481839862,-505.55537115,0.00024657,2]
[327789358,1716481839872,-500.0,0.00024657,2]
[327789359,1716481839883,-500.0,0.00024657,2]
[327789360,1716481839893,-627.07170734,0.00024657,2]
[327789361,1716481839904,-557.69,0.00024657,2]
[327789362,1716481839914,-500.0,0.00024657,2]
[327789363,1716481839924,-587.52,0.00024657,2]
[327789364,1716481839935,-65.96123438,0.00024657,2]
[327789365,1716481839956,-349.285,0.00024657,2]
[327789366,1716481839974,-84.75376562,0.00024657,2]
[327789369,1716481839985,-921.82,0.00024657,2]
[327789370,1716481839995,-1860.19,0.00024657,2]
[327789371,1716481840006,-151.0,0.00024657,2]
[327789372,1716481840017,-151.0,0.00024657,2]
[327789373,1716481840028,-205.414735,0.00024657,2]
[327789374,1716481840038,-230.43923077,0.00024657,2]
[327789376,1716481840049,-513.0873256,0.00024657,2]
[327789377,1716481840059,-544.84,0.00024657,2]
[327789378,1716481840070,-500.0,0.00024657,2]
[327789379,1716481840083,-2965.37,0.00024657,2]
[327789380,1716481840095,-500.0,0.00024657,2]
[327789381,1716481840106,-500.0,0.00024657,2]
[327789382,1716481840117,-500.0,0.00024657,2]
[327789383,1716481840128,-500.0,0.00024657,2]
[327789384,1716481840138,-500.0,0.00024657,2]
[327789386,1716481840148,-500.0,0.00024657,2]
[327789387,1716481840159,-626.23,0.00024657,2]
[327789388,1716481840170,-1015.35,0.00024657,2]
[327789389,1716481840181,-151.0,0.00024657,2]
[327789390,1716481840192,-500.0,0.00024657,2]
[327789392,1716481840205,-504.69181433,0.00024657,2]
[327789393,1716481840215,-500.0,0.00024657,2]
[327789394,1716481840225,-573.9036965,0.00024657,2]
[327789395,1716481840235,-500.0,0.00024657,2]
[327789396,1716481840246,-500.0,0.00024657,2]
[327789397,1716481840256,-746.27,0.00024657,2]
[327789398,1716481840266,-500.0,0.00024657,2]
[327789399,1716481840276,-500.0,0.00024657,2]
[327789401,1716481840286,-558.13,0.00024657,2]
[327789403,1716481840296,-1594.39,0.00024657,2]
[327789404,1716481840306,-1756.85,0.00024657,2]
[327789405,1716481840316,-500.0,0.00024657,2]
[327789406,1716481840328,-505.29154669,0.00024657,3]
[327789407,1716481840339,-500.0,0.00024657,2]
[327789408,1716481840350,-500.0,0.00024657,2]
[327789409,1716481840359,-151.0,0.00024657,2]
[327789410,1716481840369,-151.0,0.00024657,2]
[327789411,1716481840379,-151.0,0.00024657,2]
[327789412,1716481840389,-625.76,0.00024657,2]
[327789413,1716481840401,-231.796785,0.00024657,2]
[327789414,1716481840411,-979.96,0.00024657,2]
[327789415,1716481840421,-407.45587992,0.00024657,2]
[327789416,1716481840431,-500.0,0.00024657,2]
[327789417,1716481840441,-500.0,0.00024657,2]
[327789418,1716481840453,-580.27,0.00024657,2]
[327789419,1716481840463,-500.0,0.00024657,2]
[327789420,1716481840473,-500.0,0.00024657,2]
[327789421,1716481840483,-3796.17,0.00024657,2]
[327789422,1716481840493,-500.0,0.00024657,2]
[327789423,1716481840503,-500.0,0.00024657,2]
[327789424,1716481840512,-500.0,0.00024657,2]
[327789425,1716481840522,-151.0,0.00024657,2]
[327789426,1716481840532,-1453.36,0.00024657,2]
[327789427,1716481840541,-208.0,0.00024657,2]
[327789428,1716481840552,-151.0,0.00024657,2]
[327789429,1716481840561,-151.0,0.00024657,2]
[327789430,1716481840571,-151.0,0.00024657,2]
[327789431,1716481840581,-151.0,0.00024657,2]
[327789432,1716481840592,-151.0,0.00024657,2]
[327789433,1716481840603,-500.0,0.00024657,2]
[327789434,1716481840613,-1037.02,0.00024657,2]
[327789435,1716481840623,-151.884806,0.00024657,2]
[327789436,1716481840634,-1277.67,0.00024657,2]
[327789437,1716481840644,-500.0,0.00024657,2]
[327789438,1716481840654,-500.0,0.00024657,2]
[327789439,1716481840664,-3111.75,0.00024657,2]
[327789440,1716481840675,-4855.2,0.00024657,2]
[327789441,1716481840795,-500.0,0.00024657,2]
[327789442,1716481840823,-500.0,0.00024657,2]
[327789443,1716481840833,-500.0,0.00024657,2]
[327789444,1716481840843,-1021.75,0.00024657,2]
[327789445,1716481840853,-500.0,0.00024657,2]
[327789446,1716481840862,-500.0,0.00024657,2]